bitfinex/quotes_SOLUSD_20250928
["timestamp","ask_amount","ask_price","bid_price","bid_amount"]
[1759091712108,26.68,207.58,207.49,38.62]
[1759091712304,0.68,207.57,207.5,0.68]
[1759091720119,2.34776012,207.57,207.5,0.68]
[1759091720626,2.34776012,207.57,207.48,0.72]
[1759091720935,2.34776012,207.57,207.48,38.66]
[1759091721136,0.71,207.56,207.48,0.72]
[1759091721333,0.71,207.56,207.47,26.0]
[1759091721334,1.66776012,207.53,207.49,37.94]
[1759091721517,0.71,207.52,207.49,37.94]
[1759091721831,2.37776012,207.51,207.44,0.72]
[1759091725212,28.37776012,207.51,207.44,0.72]
[1759091725732,2.37776012,207.51,207.44,0.72]
[1759091726030,2.37776012,207.51,207.42,39.80776012]
[1759091726031,1.66776012,207.49,207.42,0.2]
[1759091726537,0.71,207.48,207.42,0.92]
[1759091727042,0.71,207.47,207.42,0.2]
[1759091728333,2.37776012,207.47,207.42,0.2]
[1759091728755,0.71,207.48,207.43,0.72]
[1759091729041,0.71,207.5,207.43,0.72]
[1759091735238,0.71,207.5,207.43,5.54089923]
[1759091735435,26.71,207.52,207.44,2.38776012]
[1759091735640,14.49660538,207.58,207.45,0.72]
[1759091735837,14.49660538,207.58,207.57,1.66776012]
[1759091736052,0.71,207.65,207.57,1.66776012]
[1759091736053,0.71,207.65,207.57,39.58776012]
[1759091736342,0.71,207.65,207.59,1.66776012]
[1759091737360,0.71,207.65,207.57,42.73758014]
[1759091737361,1.66776012,207.71,207.61,1.66776012]
[1759091737529,0.71,207.67,207.63,1.66776012]
[1759091737730,0.71,207.66,207.63,39.58776012]
[1759091738121,0.71,207.69,207.63,39.58776012]
[1759091740842,27.66776012,207.73,207.59,26.0]
[1759091740843,0.71,207.68,207.59,26.0]
[1759091741035,0.71,207.67,207.61,1.66776012]
[1759091741343,0.71,207.66,207.6,39.58776012]
[1759091741535,0.71,207.65,207.6,39.58776012]
[1759091741734,0.71,207.64,207.6,39.58776012]
[1759091742917,0.71,207.64,207.6,1.66776012]
[1759091743122,0.71,207.64,207.61,37.9]
[1759091743651,1.66776012,207.69,207.59,26.0]
[1759091743828,4.81440958,207.71,207.58,6.48512854]
[1759091743829,0.71,207.63,207.58,1.66776012]
[1759091744155,0.71,207.63,207.6,37.9]
[1759091744521,0.71,207.65,207.6,37.9]
[1759091744755,1.66776012,207.69,207.6,39.56776012]
[1759091744918,0.71,207.64,207.6,39.56776012]
[1759091745926,0.71,207.64,207.6,44.38466837]
[1759091746830,0.48692604,207.77,207.75,26.0]
[1759091747021,1e-08,207.77,207.76,57.97660018]
[1759091747221,0.1,207.95,207.76,57.97660018]
[1759091747222,0.71,207.92,207.83,26.0]
[1759091747441,0.1,207.95,207.86,13.59559401]
[1759091747648,0.1,207.95,207.89,26.0]
[1759091747860,0.1,207.95,207.93,26.0]
[1759091748172,0.1,207.98,207.97,26.0]
[1759091748327,1e-08,207.99,207.98,4.39829763]
[1759091748521,0.1,208.1,207.98,101.91829763]
[1759091748749,0.1,208.1,208.09,17.99389164]
[1759091748936,0.1,208.1,208.09,52.49559401]
[1759091749136,1e-08,208.1,208.09,48.10391058]
[1759091749345,0.1,208.17,208.13,26.0]
[1759091749649,0.1,208.17,208.16,4.39829763]
[1759091749821,0.1,208.17,208.16,30.39829763]
[1759091750027,0.1,208.17,208.16,26.0]
[1759091750244,0.1,208.17,208.16,83.01389164]
[1759091750457,0.81,208.17,208.16,39.06]
[1759091750624,0.81,208.17,208.13,39.59559401]
[1759091750822,0.69,208.16,208.14,39.06]
[1759091751043,0.69,208.16,208.15,39.16]
[1759091751251,0.69,208.16,208.13,39.16]
[1759091751549,0.69,208.15,208.11,39.18]
[1759091751750,0.69,208.14,208.1,39.18]
[1759091751953,0.1,208.17,208.13,4.39829763]
[1759091752268,0.1,208.17,208.16,39.59559401]
[1759091752544,0.1,208.17,208.16,83.25389164]
[1759091752763,0.1,208.17,208.16,39.26]
[1759091752925,0.1,208.17,208.16,43.65829763]
[1759091753125,0.1,208.17,208.16,57.25389164]
[1759091753834,0.1,208.17,208.16,52.85559401]
[1759091754029,0.1,208.17,208.16,57.25389164]
[1759091754235,0.1,208.17,208.16,69.65829763]
[1759091754448,0.79,208.17,208.16,39.26]
[1759091755431,0.79,208.17,208.07,4.39829763]
[1759091755754,0.69,208.16,208.09,4.39829763]
[1759091755943,0.69,208.16,208.08,39.32]
[1759091755944,0.69,208.15,208.08,43.71829763]
[1759091756256,4.49829763,208.17,208.1,4.39829763]
[1759091756257,0.69,208.14,208.1,4.39829763]
[1759091757067,0.69,208.13,208.08,39.32]
[1759091757370,0.69,208.12,208.05,39.32]
[1759091757573,0.69,208.11,208.05,39.32]
[1759091757726,0.69,208.1,208.05,39.32]
[1759091757930,0.69,208.09,208.05,39.32]
[1759091758159,4.39829763,208.13,208.05,39.32]
[1759091758160,0.69,208.08,208.05,39.32]
[1759091758832,0.69,208.11,208.05,39.32]
[1759091759139,0.69,208.1,208.05,39.32]
[1759091759345,0.69,208.09,208.05,39.32]
[1759091759762,0.69,208.12,208.08,4.39829763]
[1759091760058,0.69,208.11,208.08,4.39829763]
[1759091760251,0.69,208.11,208.05,39.32]
[1759091760467,0.69,208.11,208.07,4.39829763]
[1759091760768,0.69,208.1,208.05,39.32]
[1759091760939,0.69,208.1,207.92,21.78198183]
[1759091760940,26.0,208.06,207.9,4.39829763]
[1759091761145,4.39829763,208.01,207.92,14.46096744]
[1759091761458,0.69,208.0,207.92,14.46096744]
[1759091761766,30.39829763,207.96,207.87,4.39829763]
[1759091761968,0.69,207.97,207.91,4.39829763]
[1759091762172,26.69,207.97,207.91,4.39829763]
[1759091762334,26.69,207.97,207.89,4.39829763]
[1759091762663,0.69,207.96,207.86,26.0]
[1759091762961,5.08829763,207.95,207.86,4.39829763]
[1759091763168,26.0,207.99,207.9,4.39829763]
[1759091763463,0.69,207.98,207.92,4.39829763]
[1759091764170,0.69,207.98,207.89,13.59559401]
[1759091765257,0.69,207.98,207.91,4.39829763]
[1759091766680,0.69,208.04,207.97,4.39829763]
[1759091767058,0.69,208.04,207.99,4.39829763]
[1759091767257,0.69,208.04,208.03,4.39829763]
[1759091767461,0.69,208.08,207.96,26.0]
[1759091767675,0.69,208.07,208.06,4.39829763]
[1759091768263,0.69,208.11,208.06,4.39829763]
[1759091768458,0.69,208.1,208.08,4.39829763]
[1759091768694,0.69,208.09,207.98,38.62]
[1759091768991,0.69,208.08,208.04,4.39829763]
[1759091769191,0.69,208.07,208.02,4.39829763]
[1759091769354,0.69,208.06,208.02,4.39829763]
[1759091769559,0.69,208.05,208.04,4.39829763]
[1759091769860,0.69,208.05,208.03,4.39829763]
[1759091770073,30.80595202,208.08,208.03,4.39829763]
[1759091770270,0.69,208.04,207.93,65.46]
[1759091770465,0.69,208.03,208.0,4.39829763]
[1759091770658,0.69,208.02,208.0,4.39829763]
[1759091770858,0.69,208.01,208.0,4.39829763]
[1759091771578,26.0,208.04,208.0,4.39829763]
[1759091771783,26.0,208.04,207.93,65.46]
[1759091771784,0.7,208.03,207.93,65.46]
[1759091772083,0.7,208.03,208.0,4.39829763]
[1759091772276,0.7,208.02,208.0,4.39829763]
[1759091772672,0.7,208.01,207.93,39.46]
[1759091772881,0.7,208.0,207.81,4.81188432]
[1759091773083,0.7,207.99,207.83,13.59559401]
[1759091773284,0.7,207.98,207.92,4.39829763]
[1759091773467,0.7,207.97,207.83,13.59559401]
[1759091773780,0.7,207.96,207.89,4.39829763]
[1759091775059,0.7,207.96,207.86,26.0]
[1759091775259,0.7,207.96,207.89,4.39829763]
[1759091775694,26.0,207.98,207.89,4.39829763]
[1759091775879,26.7,208.01,207.93,4.39829763]
[1759091776079,26.0,208.01,207.93,4.39829763]
[1759091776392,0.7,208.0,207.88,13.59559401]
[1759091776690,0.7,208.03,207.9,13.59559401]
[1759091776865,0.7,208.03,207.97,6.51002317]
[1759091777192,0.7,208.02,207.92,26.0]
[1759091777375,0.7,208.02,207.96,6.51002317]
[1759091778380,0.7,208.02,207.92,26.0]
[1759091778593,0.7,208.02,207.97,6.51002317]
[1759091778767,26.0,208.04,207.95,6.51002317]
[1759091778968,33.21002317,208.04,207.95,6.51002317]
[1759091779886,26.7,208.04,207.95,6.51002317]
[1759091780188,38.01680995,208.04,207.92,26.0]
[1759091780488,0.7,208.03,207.92,26.0]
[1759091780791,6.51002317,208.0,207.91,6.51002317]
[1759091780998,7.18002317,208.0,207.91,6.51002317]
[1759091781468,0.67,208.0,207.93,6.51002317]
[1759091782275,0.67,208.0,207.9,13.59559401]
[1759091782482,0.67,207.99,207.85,14.46515104]
[1759091782794,7.18002317,207.98,207.9,6.51002317]
[1759091783094,6.51002317,207.96,207.86,20.10561718]
[1759091783273,6.51002317,207.96,207.88,26.0]
[1759091783673,6.51002317,207.94,207.83,39.24]
[1759091783878,6.51002317,207.92,207.84,13.59559401]
[1759091784496,7.18002317,207.93,207.84,13.59559401]
[1759091784683,0.67,207.93,207.84,13.59559401]
[1759091785008,6.51002317,207.92,207.84,13.59559401]
[1759091785299,6.51002317,207.92,207.83,39.24]
[1759091785500,0.67,207.93,207.83,39.24]
[1759091786001,7.18002317,207.93,207.83,39.24]
[1759091786169,26.0,207.94,207.84,20.10561718]
[1759091786890,6.51002317,207.93,207.84,20.10561718]
[1759091787278,6.51002317,207.93,207.83,39.24]
[1759091787480,6.51002317,207.91,207.83,39.24]
[1759091787977,6.51002317,207.89,207.79,13.59559401]
[1759091788180,0.67,207.89,207.79,13.59559401]
[1759091788381,6.51002317,207.89,207.79,13.59559401]
[1759091788589,0.67,207.96,207.85,6.51002317]
[1759091788897,6.51002317,207.93,207.83,13.59559401]
[1759091789083,7.18002317,207.93,207.84,26.0]
[1759091790293,0.67,207.93,207.84,26.0]
[1759091790510,6.51002317,207.93,207.84,26.0]
[1759091790712,6.51002317,207.93,207.83,46.10561718]
[1759091791715,6.51002317,207.91,207.8,13.59559401]
[1759091791882,0.67,207.9,207.8,39.59559401]
[1759091793404,6.51002317,207.89,207.8,39.59559401]
[1759091793593,0.67,207.9,207.8,46.10561718]
[1759091793806,6.51002317,207.89,207.8,46.10561718]
[1759091794946,0.67,207.94,207.8,39.59559401]
[1759091795126,0.67,207.92,207.83,6.51002317]
[1759091795293,5.47963557,207.92,207.83,6.51002317]
[1759091796316,0.67,207.92,207.83,6.51002317]
[1759091797200,0.67,207.95,207.87,6.51002317]
[1759091797397,26.0,207.93,207.87,6.51002317]
[1759091797616,26.0,207.94,207.87,6.51002317]
[1759091798313,7.18002317,207.95,207.87,6.51002317]
[1759091799613,7.18002317,207.95,207.86,6.51002317]
[1759091801534,7.18002317,207.95,207.83,13.59559401]
[1759091801535,0.67,207.94,207.83,13.59559401]
[1759091801738,7.18002317,207.93,207.83,6.51002317]
[1759091801916,0.67,207.92,207.83,6.51002317]
[1759091802240,6.51002317,207.91,207.83,6.51002317]
[1759091802623,0.67,207.92,207.83,6.51002317]
[1759091802825,0.67,207.94,207.85,6.51002317]
[1759091803023,50.31889427,207.95,207.83,26.0]
[1759091803233,7.18002317,207.93,207.85,6.51002317]
[1759091803431,0.67,207.92,207.85,6.51002317]
[1759091803622,0.67,207.92,207.82,13.59559401]
[1759091803822,0.67,207.91,207.84,6.51002317]
[1759091804939,6.51002317,207.91,207.82,6.51002317]
[1759091805236,6.51002317,207.89,207.79,13.59559401]
[1759091805417,6.51002317,207.89,207.81,6.51002317]
[1759091805741,0.67,207.88,207.81,6.51002317]
[1759091806144,26.67,207.91,207.83,6.51002317]
[1759091806352,0.67,207.9,207.83,6.51002317]
[1759091807044,0.67,207.9,207.82,6.51002317]
[1759091807823,0.67,207.89,207.81,6.51002317]
[1759091808335,0.67,207.89,207.79,13.59559401]
[1759091808520,0.67,207.89,207.81,6.51002317]
[1759091808852,0.67,207.89,207.79,13.59559401]
[1759091809021,0.67,207.89,207.81,6.51002317]
[1759091809618,5.48046757,207.88,207.78,65.18]
[1759091810037,5.48046757,207.88,207.8,6.51002317]
[1759091810345,0.67,207.88,207.84,6.51002317]
[1759091812117,0.72,207.87,207.84,6.51002317]
[1759091813536,26.0,207.89,207.84,6.51002317]
[1759091813734,0.72,207.88,207.84,6.51002317]
[1759091814045,0.72,207.87,207.78,65.18]
[1759091814266,0.72,207.87,207.83,6.51002317]
[1759091816530,0.72,207.87,207.81,6.51002317]
[1759091817221,5.53076479,207.87,207.78,65.18]
[1759091817541,0.72,207.87,207.81,6.51002317]
[1759091819436,0.72,207.87,207.78,65.18]
[1759091819638,0.72,207.87,207.81,6.51002317]
[1759091819833,0.72,207.86,207.78,65.18]
[1759091820038,0.72,207.85,207.79,6.51002317]
[1759091822630,0.72,207.85,207.78,65.18]
[1759091822631,4.81125462,207.85,207.78,39.18]
[1759091822945,6.51002317,207.82,207.73,6.51002317]
[1759091823146,7.23002317,207.82,207.73,6.51002317]
[1759091823458,0.72,207.87,207.78,6.51002317]
[1759091823660,0.72,207.87,207.8,6.51002317]
[1759091823831,71.89002317,207.9,207.8,6.51002317]
[1759091824035,39.4,207.89,207.8,6.51002317]
[1759091824459,38.68,207.89,207.8,6.51002317]
[1759091824768,26.72,207.9,207.82,6.51002317]
[1759091824984,0.72,207.93,207.8,13.59559401]
[1759091825261,0.72,207.93,207.86,6.51002317]
[1759091825438,26.0,207.91,207.86,6.51002317]
[1759091825632,0.72,208.01,207.9,6.51002317]
[1759091825839,0.72,208.01,207.95,6.51002317]
[1759091826042,26.0,207.99,207.93,6.51002317]
[1759091826449,0.72,208.01,207.93,6.51002317]
[1759091826751,26.0,207.99,207.93,6.51002317]
[1759091826934,0.72,208.01,207.93,6.51002317]
[1759091827136,26.0,207.99,207.93,6.51002317]
[1759091827533,0.72,208.04,207.95,6.51002317]
[1759091827941,0.72,208.04,207.97,6.51002317]
[1759091828445,0.72,208.07,208.03,6.51002317]
[1759091828654,0.72,208.06,208.05,6.51002317]
[1759091828855,26.72,208.06,208.05,6.51002317]
[1759091829045,26.72,208.06,208.03,6.51002317]
[1759091829244,0.72,208.05,208.03,6.51002317]
[1759091829562,0.72,208.08,208.03,6.51002317]
[1759091829859,0.72,208.07,208.05,6.51002317]
[1759091830061,0.72,208.06,208.05,6.51002317]
[1759091830460,0.72,208.06,208.02,6.51002317]
[1759091830661,0.72,208.05,207.99,6.51002317]
[1759091830835,0.72,208.04,207.99,6.51002317]
[1759091831160,30.80653689,208.05,207.98,6.51002317]
[1759091831161,26.0,208.02,207.98,6.51002317]
[1759091831373,26.68,208.01,207.98,6.51002317]
[1759091831565,26.68,208.0,207.94,6.51002317]
[1759091831950,0.68,207.99,207.94,6.51002317]
[1759091832270,0.68,207.98,207.94,6.51002317]
[1759091833367,0.68,207.97,207.92,6.51002317]
[1759091833667,0.68,207.96,207.9,6.51002317]
[1759091834048,0.68,207.96,207.92,6.51002317]
[1759091834248,0.68,207.96,207.87,13.59559401]
[1759091834249,26.0,207.96,207.9,6.51002317]
[1759091834457,26.68,207.96,207.9,6.51002317]
[1759091834954,26.68,207.96,207.88,6.51002317]
[1759091835168,0.68,207.96,207.9,6.51002317]
[1759091835339,0.68,207.96,207.87,13.59559401]
[1759091835546,0.68,207.96,207.9,6.51002317]
[1759091836359,0.68,207.96,207.9,4.40559023]
[1759091837072,26.0,207.97,207.81,37.6]
[1759091837073,4.40559023,207.94,207.85,26.0]
[1759091837260,5.08559023,207.94,207.86,4.40559023]
[1759091837866,0.68,207.94,207.86,4.40559023]
[1759091838356,0.68,207.97,207.88,4.40559023]
[1759091838667,26.0,207.95,207.88,4.40559023]
[1759091840468,26.68,207.95,207.88,4.40559023]
[1759091840781,30.80889129,207.95,207.88,4.40559023]
[1759091840969,0.68,207.94,207.88,4.40559023]
[1759091841365,0.68,207.93,207.85,26.0]
[1759091841564,0.68,207.92,207.86,4.40559023]
[1759091842062,0.68,207.94,207.86,4.40559023]
[1759091842875,0.68,208.01,207.92,4.40559023]
[1759091843050,0.68,208.0,207.93,4.40559023]
[1759091843251,0.68,208.06,207.99,4.40559023]
[1759091843467,5.08559023,208.05,207.97,4.40559023]
[1759091843673,0.68,208.04,207.97,4.40559023]
[1759091844860,31.48678801,208.04,207.97,4.40559023]
[1759091845061,31.48678801,208.04,207.93,26.0]
[1759091845062,5.08559023,208.03,207.95,4.40559023]
[1759091845261,26.0,208.0,207.95,4.40559023]
[1759091845770,4.80678801,208.04,207.88,38.54]
[1759091845771,26.0,207.98,207.92,4.40559023]
[1759091845975,26.68,207.98,207.92,4.40559023]
[1759091846182,26.0,207.98,207.92,4.40559023]
[1759091847181,0.68,207.97,207.92,4.40559023]
[1759091847478,26.0,207.98,207.96,4.40559023]
[1759091847685,0.68,208.02,207.96,4.40559023]
[1759091847984,26.0,208.01,207.98,4.40559023]
[1759091848555,0.68,208.02,207.98,4.40559023]
[1759091849473,26.0,208.03,207.98,4.40559023]
[1759091849696,0.68,208.02,207.98,4.40559023]
[1759091849870,0.68,208.06,208.0,4.40559023]
[1759091850176,0.68,208.09,208.02,4.40559023]
[1759091850354,0.68,208.09,208.04,4.40559023]
[1759091850550,26.0,208.07,208.04,4.40559023]
[1759091851356,26.68,208.07,208.04,4.40559023]
[1759091851678,26.68,208.07,208.02,4.40559023]
[1759091851679,26.0,208.07,208.02,4.40559023]
[1759091851861,0.68,208.06,208.02,4.40559023]
[1759091852057,26.0,208.07,208.02,4.40559023]
[1759091852251,0.68,208.05,208.02,4.40559023]
[1759091853189,26.0,208.05,208.02,4.40559023]
[1759091853881,0.68,208.04,207.96,112.3]
[1759091854051,0.68,208.04,208.0,4.40559023]
[1759091854464,26.68,208.04,208.0,4.40559023]
[1759091854660,26.0,208.04,207.98,4.40559023]
[1759091854966,26.68,208.03,207.98,4.40559023]
[1759091855360,26.68,208.03,207.96,33.0]
[1759091855558,26.68,208.03,207.98,4.40559023]
[1759091855769,26.68,208.02,207.98,4.40559023]
[1759091856476,26.68,208.05,207.98,4.40559023]
[1759091856666,26.0,208.05,207.98,4.40559023]
[1759091856863,0.68,208.04,207.98,4.40559023]
[1759091857565,4.40559023,207.99,207.96,33.0]
[1759091857765,4.40559023,207.97,207.96,33.0]
[1759091859763,4.40559023,207.97,207.91,13.59559401]
[1759091859992,4.40559023,207.92,207.91,13.59559401]
[1759091860567,4.40535887,207.92,207.91,13.59559401]
[1759091860979,0.68,208.02,207.91,13.59559401]
[1759091861180,4.40535887,207.92,207.91,13.59559401]
[1759091861676,0.68,208.02,207.91,13.59559401]
[1759091861886,4.40535887,207.92,207.91,13.59559401]
[1759091864588,4.40535887,207.92,207.9,13.59559401]
[1759091865389,4.40535887,207.93,207.92,39.59559401]
[1759091865686,4.40535887,207.93,207.92,26.0]
[1759091865989,4.40535887,207.93,207.9,13.59559401]
[1759091866198,4.40535887,207.91,207.9,13.59559401]
[1759091866367,4.40535887,207.91,207.89,38.44]
[1759091866977,4.40535887,207.9,207.89,38.44]
[1759091868171,0.68,207.96,207.89,38.44]
[1759091868383,1.6614859,207.93,207.89,38.44]
[1759091873092,1.6614859,207.91,207.89,38.44]
[1759091873598,0.66,207.96,207.89,38.44]
[1759091873796,1.6614859,207.91,207.89,38.44]
[1759091875385,7.3059436,207.9,207.77,20.0]
[1759091875576,1.6614859,207.83,207.78,51.91559401]
[1759091875777,1.6614859,207.83,207.8,13.59559401]
[1759091876184,0.66,207.86,207.8,13.59559401]
[1759091876390,1.6614859,207.82,207.8,13.59559401]
[1759091877382,2.3214859,207.82,207.79,38.32]
[1759091878605,1.6614859,207.82,207.79,38.32]
[1759091881906,0.66,207.91,207.8,14.07682596]
[1759091882108,1.6614859,207.87,207.8,13.59559401]
[1759091882408,1.6614859,207.85,207.8,13.59559401]
[1759091882702,2.3214859,207.85,207.8,13.59559401]
[1759091883082,0.66,207.84,207.79,38.32]
[1759091883586,1.6614859,207.85,207.79,38.32]
[1759091883780,1.6614859,207.83,207.79,38.32]
[1759091883986,0.66,207.82,207.79,38.32]
[1759091884213,1.6614859,207.83,207.79,38.32]
[1759091885089,0.66,207.91,207.8,13.59559401]
[1759091885289,1.6614859,207.91,207.8,13.59559401]
[1759091885491,1.6614859,207.92,207.8,92.89559401]
[1759091885898,1.6614859,207.92,207.82,13.59559401]
[1759091886096,1.6614859,207.92,207.84,13.59559401]
[1759091886498,0.66,207.93,207.84,13.59559401]
[1759091886700,4.80770298,208.0,207.84,13.59559401]
[1759091886701,1.6614859,207.94,207.84,13.59559401]
[1759091887596,0.66,207.98,207.84,13.59559401]
[1759091887913,0.66,207.97,207.84,92.89559401]
[1759091888205,32.6459436,208.01,207.84,92.89559401]
[1759091888387,0.66,207.96,207.84,92.89559401]
[1759091888701,0.66,207.95,207.84,92.89559401]
[1759091889815,0.66,207.97,207.84,92.89559401]
[1759091890108,0.66,207.97,207.85,13.59559401]
[1759091890307,0.66,207.97,207.86,38.26]
[1759091890604,2.3214859,207.97,207.86,38.26]
[1759091891502,1.6614859,207.95,207.87,13.59559401]
[1759091891710,2.3514859,207.95,207.87,13.59559401]
[1759091892009,2.3514859,207.95,207.87,92.89559401]
[1759091893704,1.6614859,207.93,207.86,38.26]
[1759091893912,0.69,207.92,207.86,38.26]
[1759091894293,1.6614859,207.93,207.86,38.26]
[1759091894510,1.6614859,207.95,207.86,38.26]
[1759091895216,0.69,207.94,207.82,13.59559401]
[1759091895507,0.69,207.94,207.83,38.2]
[1759091895709,1.6614859,207.93,207.83,38.2]
[1759091895911,2.3514859,207.93,207.83,38.2]
[1759091896212,3.28652281,207.93,207.83,38.2]
[1759091897313,3.28652281,207.93,207.82,13.59559401]
[1759091897490,2.59652281,207.93,207.83,38.2]
[1759091898708,0.69,207.95,207.83,38.2]
[1759091898910,0.69,207.94,207.83,38.2]
[1759091899615,26.0,207.97,207.84,54.56673334]
[1759091899911,2.59652281,208.0,207.84,54.56673334]
[1759091899912,2.59652281,208.0,207.84,133.38559401]
[1759091900113,0.69,207.99,207.84,133.38559401]
[1759091900420,3.28652281,207.98,207.84,133.38559401]
[1759091900597,0.72,207.97,207.84,133.38559401]
[1759091900920,0.72,207.96,207.84,133.38559401]
[1759091901398,3.31652281,207.98,207.84,133.38559401]
[1759091901597,0.72,207.98,207.84,133.38559401]
[1759091903221,28.59652281,208.0,207.84,133.38559401]
[1759091903222,0.72,207.97,207.84,133.38559401]
[1759091905914,28.59652281,208.0,207.84,133.38559401]
[1759091905915,0.72,207.96,207.84,133.38559401]
[1759091906608,0.72,207.96,207.86,13.59559401]
[1759091906810,0.72,207.96,207.88,13.59559401]
[1759091907606,0.72,207.95,207.88,13.59559401]
[1759091909823,0.72,207.95,207.88,92.89559401]
[1759091910401,26.0,207.99,207.88,92.89559401]
[1759091910604,0.72,207.98,207.88,92.89559401]
[1759091910916,0.72,207.97,207.88,92.89559401]
[1759091911814,0.72,207.96,207.88,92.89559401]
[1759091912012,0.72,207.95,207.83,14.46654611]
[1759091912214,0.72,207.95,207.84,51.77559401]
[1759091912719,26.0,207.97,207.84,51.77559401]
[1759091913013,0.72,207.97,207.84,51.77559401]
[1759091913319,0.72,207.96,207.84,51.77559401]
[1759091913512,0.72,207.96,207.85,14.4644536]
[1759091916021,0.72,207.95,207.85,14.4644536]
[1759091916214,7.40465754,207.99,207.85,14.4644536]
[1759091916429,0.72,207.94,207.85,13.59559401]
[1759091917716,0.72,207.93,207.85,13.59559401]
[1759091919808,0.72,207.92,207.84,38.18]
[1759091920318,2.59652281,207.93,207.84,38.18]
[1759091920522,3.31652281,207.91,207.84,38.18]
[1759091921109,0.72,207.9,207.84,38.18]
[1759091924010,26.72,207.93,207.84,38.18]
[1759091924909,0.72,207.92,207.84,38.18]
[1759091933135,0.69,207.94,207.84,38.18]
[1759091933342,0.69,207.99,207.85,13.59559401]
[1759091933508,3.28652281,207.98,207.85,13.59559401]
[1759091933706,26.0,207.99,207.85,13.59559401]
[1759091933707,2.59652281,207.96,207.85,13.59559401]
[1759091933904,0.69,207.95,207.85,13.59559401]
[1759091934605,2.59652281,207.96,207.85,13.59559401]
[1759091935628,26.69,207.97,207.85,13.59559401]
[1759091935920,0.69,207.96,207.85,13.59559401]
[1759091936126,0.69,207.95,207.85,13.59559401]
[1759091937910,2.59652281,207.94,207.85,13.59559401]
[1759091939728,0.69,207.95,207.85,13.59559401]
[1759091940053,26.0,207.97,207.85,13.59559401]
[1759091940331,2.59652281,207.94,207.85,13.59559401]
[1759091942535,3.28652281,207.94,207.85,13.59559401]
[1759091942826,2.59652281,207.93,207.85,13.59559401]
[1759091947938,0.69,207.94,207.85,13.59559401]
[1759091948119,2.59652281,207.93,207.85,13.59559401]
[1759091952846,0.69,207.94,207.85,13.59559401]
[1759091953024,3.28652281,207.94,207.85,13.59559401]
[1759091953731,0.69,207.94,207.85,13.59559401]
[1759091953948,3.28652281,207.94,207.85,13.59559401]
[1759091954819,3.29652281,207.94,207.85,13.59559401]
[1759091956541,2.59652281,207.94,207.85,13.59559401]
[1759091956736,0.7,207.96,207.85,13.59559401]
[1759091956934,3.29652281,207.96,207.85,18.40671015]
[1759091957442,0.7,207.99,207.86,26.0]
[1759091957650,0.7,208.03,207.89,13.59559401]
[1759091957829,0.7,208.02,207.94,13.59559401]
[1759091958027,0.7,208.01,207.95,38.12]
[1759091965054,2.38016681,208.02,207.95,38.12]
[1759091965558,0.72,208.02,207.95,38.12]
[1759091966549,0.72,208.01,207.95,38.12]
[1759091969258,0.72,208.01,207.95,52.58027041]
[1759091970760,0.72,208.0,207.95,52.58027041]
[1759091970951,0.72,207.99,207.95,52.58027041]
[1759091971132,1.66016681,208.04,207.95,52.58027041]
[1759091971336,0.72,207.99,207.95,52.58027041]
[1759091971536,0.72,208.02,207.95,38.12]
[1759091972258,0.72,208.01,207.95,38.12]
[1759091973448,0.72,208.0,207.95,38.12]
[1759091973960,0.72,208.02,207.95,38.12]
[1759091974153,1.66016681,208.04,207.95,38.12]
[1759091974339,0.72,208.01,207.95,38.12]